fUSD/lending_fUSD_20240222
["ID","MTS","AMOUNT","RATE_DAILY","PERIOD"]
[314855233,1708595445392,-500.0,0.00035616,2]
[314855234,1708595445401,-500.0,0.00035616,2]
[314855235,1708595445410,-315.95744708,0.00035616,2]
[314855236,1708595445420,-565.13,0.00035616,2]
[314855237,1708595445429,-500.0,0.00035616,2]
[314855238,1708595445438,-500.0,0.00035616,2]
[314855239,1708595445448,-500.0,0.00035616,2]
[314855240,1708595445457,-522.96640994,0.00035616,2]
[314855241,1708595445467,-500.0,0.00035616,2]
[314855242,1708595445476,-534.98565317,0.00035616,2]
[314855243,1708595445486,-504.24307689,0.00035616,2]
[314855244,1708595445496,-502.19422312,0.00035616,2]
[314855245,1708595445506,-500.0,0.00035616,2]
[314855246,1708595445515,-500.0,0.00035616,2]
[314855247,1708595445524,-500.0,0.00035616,2]
[314855248,1708595445534,-500.0,0.00035616,2]
[314855249,1708595445543,-500.0,0.00035616,2]
[314855250,1708595445552,-984.86,0.00035616,2]
[314855251,1708595445561,-500.0,0.00035616,2]
[314855252,1708595445571,-500.0,0.00035616,2]
[314855253,1708595445580,-500.0,0.00035616,2]
[314855254,1708595445589,-500.0,0.00035616,2]
[314855255,1708595445601,-500.0,0.00035616,2]
[314855256,1708595445610,-653.7,0.00035616,2]
[314855257,1708595445620,-500.0,0.00035616,2]
[314855258,1708595445629,-500.0,0.00035616,2]
[314855259,1708595445638,-570.19,0.00035616,2]
[314855260,1708595445648,-500.0,0.00035616,2]
[314855261,1708595445657,-500.0,0.00035616,2]
[314855262,1708595445666,-2022.96913683,0.00035616,2]
[314855263,1708595445675,-511.23986969,0.00035616,2]
[314855264,1708595445685,-500.0,0.00035616,2]
[314855265,1708595445694,-500.0,0.00035616,2]
[314855266,1708595445704,-583.46,0.00035616,2]
[314855267,1708595445713,-500.0,0.00035616,2]
[314855268,1708595445722,-500.0,0.00035616,2]
[314855269,1708595445732,-168.83658098,0.00035616,2]
[314855270,1708595445742,-500.0,0.00035616,2]
[314855271,1708595445751,-701.44,0.00035616,2]
[314855272,1708595445760,-428.04631817,0.00035616,2]
[314855273,1708595445769,-500.0,0.00035616,2]
[314855274,1708595445779,-500.0,0.00035616,2]
[314855275,1708595445789,-500.0,0.00035616,2]
[314855276,1708595445798,-500.0,0.00035616,2]
[314855277,1708595445811,-500.0,0.00035616,2]
[314855278,1708595445822,-1103.68,0.00035616,2]
[314855279,1708595445832,-500.0,0.00035616,2]
[314855280,1708595445842,-500.0,0.00035616,2]
[314855281,1708595445854,-664.05,0.00035616,2]
[314855282,1708595445863,-503.60934184,0.00035616,2]
[314855283,1708595445873,-500.0,0.00035616,2]
[314855284,1708595445884,-500.0,0.00035616,2]
[314855286,1708595445894,-500.0,0.00035616,2]
[314855287,1708595445904,-530.96695862,0.00035616,2]
[314855288,1708595445915,-500.0,0.00035616,2]
[314855289,1708595445924,-500.0,0.00035616,2]
[314855290,1708595445933,-500.0,0.00035616,2]
[314855291,1708595445942,-504.92,0.00035616,2]
[314855292,1708595445952,-1014.09,0.00035616,2]
[314855293,1708595445961,-500.0,0.00035616,2]
[314855294,1708595445972,-500.0,0.00035616,2]
[314855295,1708595445980,-853.94,0.00035616,2]
[314855298,1708595445990,-500.0,0.00035616,2]
[314855299,1708595446000,-500.0,0.00035616,2]
[314855300,1708595446010,-500.0,0.00035616,2]
[314855301,1708595446019,-500.0,0.00035616,2]
[314855302,1708595446028,-500.0,0.00035616,2]
[314855303,1708595446037,-500.0,0.00035616,2]
[314855304,1708595446047,-500.0,0.00035616,2]
[314855305,1708595446055,-628.25,0.00035616,2]
[314855306,1708595446065,-500.0,0.00035616,2]
[314855307,1708595446075,-500.0,0.00035616,2]
[314855308,1708595446087,-500.0,0.00035616,2]
[314855309,1708595446096,-1118.62392656,0.00035616,30]
[314855310,1708595446109,-514.88769567,0.00035616,2]
[314855311,1708595446120,-500.0,0.00035616,2]
[314855312,1708595446132,-500.0,0.00035616,2]
[314855313,1708595446143,-877.23,0.00035616,2]
[314855314,1708595446153,-500.0,0.00035616,2]
[314855315,1708595446163,-500.0,0.00035616,2]
[314855316,1708595446172,-500.0,0.00035616,2]
[314855317,1708595446181,-258.66625974,0.00035616,2]
[314855318,1708595446190,-712.11,0.00035616,2]
[314855319,1708595446199,-500.0,0.00035616,2]
[314855320,1708595446210,-500.0,0.00035616,2]
[314855321,1708595446219,-500.0,0.00035616,2]
[314855322,1708595446228,-500.0,0.00035616,2]
[314855323,1708595446238,-1712.03,0.00035616,2]
[314855324,1708595446247,-634.59271741,0.00035616,2]
[314855325,1708595446256,-500.0,0.00035616,2]
[314855326,1708595446266,-500.0,0.00035616,2]
[314855327,1708595446275,-500.0,0.00035616,2]
[314855328,1708595446285,-500.0,0.00035616,2]
[314855329,1708595446294,-647.35,0.00035616,2]
[314855330,1708595446304,-500.0,0.00035616,2]
[314855331,1708595446314,-500.0,0.00035616,2]
[314855332,1708595446323,-500.0,0.00035616,2]
[314855334,1708595446332,-500.0,0.00035616,2]
[314855335,1708595446342,-985.66,0.00035616,2]
[314855336,1708595446351,-500.0,0.00035616,2]
[314855337,1708595446361,-873.67,0.00035616,2]
[314855338,1708595446370,-500.0,0.00035616,2]
[314855339,1708595446379,-500.0,0.00035616,2]
[314855340,1708595446389,-500.0,0.00035616,2]
[314855341,1708595446398,-500.0,0.00035616,2]
[314855342,1708595446407,-500.0,0.00035616,2]
[314855343,1708595446417,-1241.39,0.00035616,2]
[314855344,1708595446426,-527.20784775,0.00035616,2]
[314855345,1708595446436,-500.0,0.00035616,2]
[314855346,1708595446818,-500.0,0.00035616,2]
[314855347,1708595446828,-500.0,0.00035616,2]
[314855348,1708595446837,-500.0,0.00035616,2]
[314855349,1708595446846,-500.0,0.00035616,2]
[314855350,1708595446857,-500.0,0.00035616,2]
[314855351,1708595446866,-500.0,0.00035616,2]
[314855352,1708595446876,-500.0,0.00035616,2]
[314855353,1708595446885,-500.0,0.00035616,2]
[314855354,1708595446894,-500.0,0.00035616,2]
[314855355,1708595446903,-500.0,0.00035616,2]
[314855356,1708595446913,-500.0,0.00035616,2]
[314855357,1708595446922,-500.0,0.00035616,2]
[314855358,1708595446931,-500.0,0.00035616,2]
[314855359,1708595446941,-500.0,0.00035616,2]
[314855360,1708595446950,-500.0,0.00035616,2]
[314855361,1708595446959,-500.0,0.00035616,2]
[314855362,1708595446968,-907.53,0.00035616,2]
[314855363,1708595446977,-507.10389327,0.00035616,2]
[314855364,1708595446986,-500.0,0.00035616,2]
[314855365,1708595446995,-518.57304655,0.00035616,2]
[314855366,1708595447004,-500.0,0.00035616,2]
[314855367,1708595447013,-500.0,0.00035616,2]
[314855368,1708595447022,-500.0,0.00035616,2]
[314855369,1708595447031,-501.89,0.00035616,2]
[314855370,1708595447041,-500.0,0.00035616,2]
[314855371,1708595447052,-500.0,0.00035616,2]
[314855372,1708595447061,-536.162994,0.00035616,2]
[314855373,1708595447070,-500.0,0.00035616,2]
[314855374,1708595447079,-500.0,0.00035616,2]
[314855375,1708595447088,-500.0,0.00035616,2]
[314855376,1708595447097,-500.0,0.00035616,2]
[314855377,1708595447107,-500.0,0.00035616,2]
[314855378,1708595447117,-837.23,0.00035616,2]
[314855379,1708595447127,-500.0,0.00035616,2]
[314855380,1708595447136,-509.71375081,0.00035616,2]
[314855381,1708595447146,-1103.42,0.00035616,2]
[314855382,1708595447157,-500.0,0.00035616,2]
[314855383,1708595447168,-500.0,0.00035616,2]
[314855384,1708595447178,-658.47,0.00035616,2]
[314855385,1708595447187,-500.0,0.00035616,2]
[314855386,1708595447197,-803.94,0.00035616,2]
[314855387,1708595447206,-500.0,0.00035616,2]
[314855388,1708595447215,-500.0,0.00035616,2]
[314855389,1708595447225,-500.0,0.00035616,2]
[314855390,1708595447235,-726.95,0.00035616,2]
[314855391,1708595447244,-500.0,0.00035616,2]
[314855392,1708595447254,-500.0,0.00035616,2]
[314855393,1708595447263,-500.0,0.00035616,2]
[314855394,1708595447272,-500.0,0.00035616,2]
[314855395,1708595447282,-500.0,0.00035616,2]
[314855396,1708595447291,-500.0,0.00035616,2]
[314855397,1708595447301,-503.40969947,0.00035616,2]
[314855398,1708595447310,-500.0,0.00035616,2]
[314855399,1708595447319,-500.0,0.00035616,2]
[314855400,1708595447329,-500.0,0.00035616,2]
[314855401,1708595447340,-500.0,0.00035616,2]
[314855402,1708595447350,-1027.59,0.00035616,2]
[314855403,1708595447361,-500.0,0.00035616,2]
[314855404,1708595447371,-500.0,0.00035616,2]
[314855405,1708595447382,-500.0,0.00035616,2]
[314855406,1708595447392,-1008.5,0.00035616,2]
[314855407,1708595447401,-1308.17,0.00035616,2]
[314855408,1708595447410,-500.0,0.00035616,2]
[314855409,1708595447420,-500.0,0.00035616,2]
[314855410,1708595447430,-579.04,0.00035616,2]
[314855411,1708595447441,-503.49891591,0.00035616,2]
[314855412,1708595447450,-159.4596416,0.00035616,2]
[314855413,1708595447460,-500.0,0.00035616,2]
[314855414,1708595447469,-500.0,0.00035616,2]
[314855415,1708595447479,-500.0,0.00035616,2]
[314855416,1708595447489,-494.6638786,0.00035616,2]
[314855417,1708595447498,-806.04,0.00035616,2]
[314855418,1708595447507,-500.0,0.00035616,2]
[314855419,1708595447517,-500.0,0.00035616,2]
[314855420,1708595447526,-500.0,0.00035616,2]
[314855421,1708595447535,-547.19,0.00035616,2]
[314855422,1708595447544,-500.0,0.00035616,2]
[314855423,1708595447554,-500.0,0.00035616,2]
[314855424,1708595447564,-500.0,0.00035616,2]
[314855425,1708595447573,-1101.24,0.00035616,2]
[314855426,1708595447583,-500.0,0.00035616,2]
[314855427,1708595447593,-694.06,0.00035616,2]
[314855428,1708595447602,-500.0,0.00035616,2]
[314855429,1708595447612,-500.0,0.00035616,2]
[314855430,1708595447621,-500.0,0.00035616,2]
[314855431,1708595447630,-1227.69,0.00035616,2]
[314855432,1708595447639,-500.0,0.00035616,2]
[314855433,1708595447649,-500.0,0.00035616,2]
[314855434,1708595447659,-500.0,0.00035616,2]
[314855435,1708595447668,-500.0,0.00035616,2]
[314855436,1708595447678,-500.0,0.00035616,2]
[314855437,1708595447687,-500.0,0.00035616,2]
[314855438,1708595447696,-500.0,0.00035616,2]
[314855439,1708595447705,-500.0,0.00035616,2]
[314855440,1708595447714,-500.0,0.00035616,2]
[314855441,1708595447723,-500.0,0.00035616,2]
[314855442,1708595447733,-500.0,0.00035616,2]
[314855443,1708595447743,-500.0,0.00035616,2]
[314855444,1708595447753,-965.54,0.00035616,2]
[314855445,1708595447762,-500.0,0.00035616,2]
[314855446,1708595447771,-1015.41,0.00035616,2]
[314855447,1708595447781,-500.0,0.00035616,2]
[314855448,1708595447790,-1009.41,0.00035616,2]
[314855449,1708595447800,-500.0,0.00035616,2]
[314855450,1708595447812,-500.0,0.00035616,2]
[314855451,1708595447821,-500.0,0.00035616,2]
[314855452,1708595447830,-500.0,0.00035616,2]
[314855453,1708595447839,-500.0,0.00035616,2]
[314855454,1708595447850,-502.71242815,0.00035616,2]
[314855455,1708595447861,-500.0,0.00035616,2]
[314855456,1708595447870,-500.0,0.00035616,2]
[314855457,1708595447879,-831.38,0.00035616,2]
[314855458,1708595447889,-500.0,0.00035616,2]
[314855459,1708595447899,-1812.37,0.00035616,2]
[314855460,1708595447909,-508.11406383,0.00035616,2]
[314855461,1708595447918,-500.0,0.00035616,2]
[314855462,1708595447927,-567.55,0.00035616,2]
[314855463,1708595447936,-548.47396288,0.00035616,2]
[314855464,1708595447945,-500.0,0.00035616,2]
[314855465,1708595447954,-500.0,0.00035616,2]
[314855466,1708595447964,-500.0,0.00035616,2]
[314855467,1708595447973,-717.33,0.00035616,2]
[314855468,1708595447984,-500.0,0.00035616,2]
[314855469,1708595447993,-564.7580603,0.00035616,2]
[314855470,1708595448002,-500.0,0.00035616,2]
[314855471,1708595448012,-500.0,0.00035616,2]
[314855472,1708595448022,-500.0,0.00035616,2]
[314855473,1708595448031,-500.0,0.00035616,2]
[314855474,1708595448041,-500.0,0.00035616,2]
[314855475,1708595448050,-500.0,0.00035616,2]
[314855476,1708595448060,-500.0,0.00035616,2]
[314855477,1708595448070,-500.0,0.00035616,2]
[314855478,1708595448081,-500.0,0.00035616,2]
[314855479,1708595448091,-722.35,0.00035616,2]
[314855480,1708595448100,-500.0,0.00035616,2]
[314855481,1708595448111,-590.1,0.00035616,2]
[314855482,1708595448120,-500.0,0.00035616,2]
[314855483,1708595448129,-500.0,0.00035616,2]
[314855484,1708595448139,-636.75,0.00035616,2]
[314855485,1708595448148,-500.0,0.00035616,2]
[314855486,1708595448157,-500.0,0.00035616,2]
[314855487,1708595448167,-500.0,0.00035616,2]
[314855488,1708595448177,-500.0,0.00035616,2]
[314855489,1708595448186,-506.04498676,0.00035616,2]
[314855490,1708595448196,-500.0,0.00035616,2]
[314855491,1708595448206,-5901.0,0.00035616,2]
[314855492,1708595448215,-507.87443918,0.00035616,2]
[314855493,1708595448227,-500.0,0.00035616,2]
[314855494,1708595448237,-500.0,0.00035616,2]
[314855495,1708595448248,-500.0,0.00035616,2]
[314855496,1708595448259,-500.0,0.00035616,2]
[314855497,1708595448270,-501.22111872,0.00035616,2]
[314855498,1708595448282,-500.0,0.00035616,2]
[314855499,1708595448293,-710.17,0.00035616,2]
[314855500,1708595448304,-500.0,0.00035616,2]
[314855501,1708595448316,-552.1,0.00035616,2]
[314855502,1708595448326,-500.0,0.00035616,2]
[314855503,1708595448338,-500.0,0.00035616,2]
[314855504,1708595448349,-500.0,0.00035616,2]
[314855505,1708595448365,-500.0,0.00035616,2]
[314855506,1708595448375,-500.0,0.00035616,2]
[314855507,1708595448386,-871.91,0.00035616,2]
[314855508,1708595448396,-500.0,0.00035616,2]
[314855509,1708595448407,-10000.0,0.00035616,2]
[314855510,1708595448417,-500.0,0.00035616,2]
[314855511,1708595448428,-500.0,0.00035616,2]
[314855512,1708595448438,-539.03,0.00035616,2]
[314855513,1708595448447,-500.0,0.00035616,2]
[314855514,1708595448458,-504.32068614,0.00035616,2]
[314855515,1708595448467,-500.0,0.00035616,2]
[314855516,1708595448477,-876.97,0.00035616,2]
[314855517,1708595448486,-500.0,0.00035616,2]
[314855518,1708595448496,-500.0,0.00035616,2]
[314855519,1708595448506,-643.06,0.00035616,2]
[314855520,1708595448516,-500.0,0.00035616,2]
[314855521,1708595448525,-639.75,0.00035616,2]
[314855522,1708595448534,-500.0,0.00035616,2]
[314855523,1708595448544,-500.0,0.00035616,2]
[314855524,1708595448553,-500.0,0.00035616,2]
[314855525,1708595448563,-500.0,0.00035616,2]
[314855526,1708595448572,-162.30813234,0.00035616,2]
[314855527,1708595448582,-500.0,0.00035616,2]
[314855528,1708595448592,-500.0,0.00035616,2]
[314855529,1708595448602,-500.0,0.00035616,2]
[314855530,1708595448616,-746.98,0.00035616,2]
[314855531,1708595448625,-513.42742396,0.00035616,2]
[314855532,1708595448635,-500.0,0.00035616,2]
[314855533,1708595448644,-1000.0,0.00035616,7]
[314855534,1708595448653,-500.0,0.00035616,2]
[314855535,1708595448662,-597.25,0.00035616,2]
[314855536,1708595448672,-500.0,0.00035616,2]
[314855537,1708595448681,-500.0,0.00035616,2]
[314855538,1708595448690,-1380.6,0.00035616,2]
[314855539,1708595448700,-500.0,0.00035616,2]
[314855540,1708595448709,-523.23712333,0.00035616,2]
[314855541,1708595448720,-500.0,0.00035616,2]
[314855542,1708595448729,-500.0,0.00035616,2]
[314855543,1708595448738,-2000.0,0.00035616,2]
[314855544,1708595448748,-2000.0,0.00035616,2]
[314855545,1708595448759,-500.0,0.00035616,2]
[314855546,1708595448770,-2000.0,0.00035616,2]
[314855547,1708595448781,-2000.0,0.00035616,2]
[314855548,1708595448790,-2000.0,0.00035616,2]
[314855549,1708595448799,-934.61,0.00035616,2]
[314855550,1708595448812,-500.0,0.00035616,2]
[314855551,1708595448821,-810.72720146,0.00035616,2]
[314855552,1708595448830,-861.71,0.00035616,2]
[314855553,1708595448839,-500.0,0.00035616,2]
[314855554,1708595448849,-919.13,0.00035616,2]
[314855555,1708595448861,-886.2,0.00035616,2]
[314855556,1708595448871,-528.80698785,0.00035616,2]
[314855557,1708595448881,-500.0,0.00035616,2]
[314855558,1708595448892,-932.85,0.00035616,2]
[314855559,1708595448902,-500.0,0.00035616,2]
[314855560,1708595448912,-501.77,0.00035616,2]
[314855561,1708595448922,-500.0,0.00035616,2]
[314855562,1708595448932,-500.0,0.00035616,2]
[314855563,1708595448942,-500.0,0.00035616,2]
[314855564,1708595448951,-500.0,0.00035616,2]
[314855565,1708595448961,-709.6,0.00035616,2]
[314855566,1708595448970,-500.0,0.00035616,2]
[314855567,1708595448981,-500.0,0.00035616,2]
[314855568,1708595448990,-924.91,0.00035616,2]
[314855569,1708595449000,-500.0,0.00035616,2]
[314855570,1708595449009,-511.83098537,0.00035616,2]
[314855571,1708595449019,-500.0,0.00035616,2]
[314855572,1708595449028,-500.0,0.00035616,2]
[314855573,1708595449039,-500.0,0.00035616,2]
[314855574,1708595449048,-500.0,0.00035616,2]
[314855575,1708595449058,-870.94,0.00035616,2]
[314855576,1708595449067,-790.09,0.00035616,2]
[314855577,1708595449077,-500.0,0.00035616,2]
[314855578,1708595449086,-500.0,0.00035616,2]
[314855579,1708595449095,-261.02550805,0.00035616,2]
[314855580,1708595449105,-636.67,0.00035616,2]
[314855581,1708595449117,-500.0,0.00035616,2]
[314855582,1708595449152,-500.0,0.00035616,2]
[314855583,1708595449161,-500.0,0.00035616,2]
[314855584,1708595449172,-591.21,0.00035616,2]
[314855585,1708595449181,-1000.0,0.00035616,7]
[314855586,1708595449190,-500.0,0.00035616,2]
[314855587,1708595449199,-709.27,0.00035616,2]
[314855588,1708595449209,-500.0,0.00035616,2]
[314855589,1708595449218,-500.0,0.00035616,2]
[314855590,1708595449227,-500.0,0.00035616,2]
[314855591,1708595449319,-500.0,0.00035616,2]
[314855592,1708595449329,-522.22,0.00035616,2]
[314855593,1708595449338,-500.0,0.00035616,2]
[314855594,1708595449347,-500.0,0.00035616,2]
[314855595,1708595449359,-500.0,0.00035616,2]
[314855596,1708595449368,-510.68997406,0.00035616,2]
[314855597,1708595449378,-1397.9,0.00035616,2]
[314855598,1708595449387,-500.0,0.00035616,2]
[314855599,1708595449396,-500.0,0.00035616,2]
[314855600,1708595449405,-500.0,0.00035616,2]
[314855601,1708595449415,-500.0,0.00035616,2]
[314855602,1708595449424,-500.0,0.00035616,2]
[314855603,1708595449433,-500.0,0.00035616,2]
[314855604,1708595449443,-500.0,0.00035616,2]
[314855605,1708595449452,-761.98,0.00035616,2]
[314855606,1708595449461,-765.14,0.00035616,2]
[314855607,1708595449471,-500.0,0.00035616,2]
[314855608,1708595449480,-500.0,0.00035616,2]
[314855609,1708595449489,-500.0,0.00035616,2]
[314855610,1708595449499,-500.0,0.00035616,2]
[314855611,1708595449508,-500.0,0.00035616,2]
[314855612,1708595449517,-512.1478248,0.00035616,2]
[314855613,1708595449527,-500.0,0.00035616,2]
[314855614,1708595449536,-500.0,0.00035616,2]
[314855615,1708595449545,-539.14,0.00035616,2]
[314855616,1708595449555,-561.07,0.00035616,2]
[314855617,1708595449564,-498.14396783,0.00035616,2]
[314855618,1708595449573,-500.0,0.00035616,2]
[314855619,1708595449582,-500.0,0.00035616,2]
[314855620,1708595449590,-500.0,0.00035616,2]
[314855621,1708595449599,-634.32,0.00035616,2]
[314855622,1708595449610,-500.0,0.00035616,2]
[314855623,1708595449619,-550.11018646,0.00035616,2]
[314855624,1708595449628,-500.0,0.00035616,2]
[314855625,1708595449637,-500.0,0.00035616,2]
[314855626,1708595449647,-500.0,0.00035616,2]
[314855627,1708595449656,-674.01,0.00035616,2]
[314855628,1708595449666,-502.05055045,0.00035616,2]
[314855629,1708595449675,-500.0,0.00035616,2]
[314855630,1708595449685,-500.0,0.00035616,2]
[314855631,1708595449694,-864.58,0.00035616,2]
[314855632,1708595449704,-500.0,0.00035616,2]
[314855633,1708595449713,-500.0,0.00035616,2]
[314855634,1708595449723,-500.0,0.00035616,2]
[314855635,1708595449732,-500.0,0.00035616,2]
[314855636,1708595449741,-250.0,0.00035616,2]
[314855637,1708595449751,-575.14,0.00035616,2]
[314855638,1708595449760,-1061.42,0.00035616,2]
[314855639,1708595449770,-500.0,0.00035616,2]
[314855640,1708595449779,-500.0,0.00035616,2]
[314855641,1708595449789,-500.0,0.00035616,2]
[314855642,1708595449800,-1111.24,0.00035616,2]
[314855643,1708595449811,-559.65229446,0.00035616,2]
[314855644,1708595449821,-500.0,0.00035616,2]
[314855645,1708595449830,-500.0,0.00035616,2]
[314855646,1708595449840,-535.57755888,0.00035616,2]
[314855647,1708595449850,-500.0,0.00035616,2]
[314855648,1708595449862,-508.99,0.00035616,2]
[314855649,1708595449872,-1000.0,0.00035616,7]
[314855650,1708595449882,-500.0,0.00035616,2]
[314855651,1708595449892,-500.0,0.00035616,2]
[314855652,1708595449903,-591.29859165,0.00035616,2]
[314855653,1708595449912,-1425.07,0.00035616,2]
[314855654,1708595449921,-500.0,0.00035616,2]
[314855655,1708595449930,-500.0,0.00035616,2]
[314855656,1708595449940,-500.0,0.00035616,2]
[314855657,1708595449949,-894.15,0.00035616,2]
[314855658,1708595449958,-508.97625946,0.00035616,2]
[314855659,1708595449967,-500.0,0.00035616,2]
[314855660,1708595449976,-500.0,0.00035616,2]
[314855661,1708595449985,-500.0,0.00035616,2]
[314855662,1708595449995,-500.0,0.00035616,2]
[314855663,1708595450004,-500.0,0.00035616,2]
[314855664,1708595450014,-773.22,0.00035616,2]
[314855665,1708595450023,-500.0,0.00035616,2]
[314855666,1708595450032,-500.0,0.00035616,2]
[314855667,1708595450041,-500.0,0.00035616,2]
[314855668,1708595450050,-885.28,0.00035616,2]
[314855669,1708595450059,-500.0,0.00035616,2]
[314855670,1708595450069,-723.57,0.00035616,2]
[314855671,1708595450079,-500.0,0.00035616,2]
[314855672,1708595450089,-500.0,0.00035616,2]
[314855673,1708595450098,-501.78904251,0.00035616,2]
[314855674,1708595450109,-500.0,0.00035616,2]
[314855675,1708595450119,-500.0,0.00035616,2]
[314855676,1708595450129,-527.92364051,0.00035616,2]
[314855677,1708595450138,-500.0,0.00035616,2]
[314855678,1708595450149,-500.0,0.00035616,2]
[314855679,1708595450159,-839.36,0.00035616,2]
[314855680,1708595450168,-883.51,0.00035616,2]
[314855681,1708595450178,-808.41,0.00035616,2]
[314855682,1708595450187,-517.8305273,0.00035616,2]
[314855683,1708595450197,-500.0,0.00035616,2]
[314855684,1708595450206,-500.0,0.00035616,2]
[314855685,1708595450215,-500.0,0.00035616,2]
[314855686,1708595450224,-500.0,0.00035616,2]
[314855687,1708595450233,-1036.36,0.00035616,2]
[314855688,1708595450242,-500.0,0.00035616,2]
[314855689,1708595450252,-500.0,0.00035616,2]
[314855690,1708595450261,-563.78087618,0.00035616,2]
[314855691,1708595450270,-500.0,0.00035616,2]
[314855692,1708595450279,-500.0,0.00035616,2]
[314855693,1708595450288,-500.0,0.00035616,2]
[314855694,1708595450297,-500.0,0.00035616,2]
[314855695,1708595450306,-500.0,0.00035616,2]
[314855696,1708595450315,-500.0,0.00035616,2]
[314855697,1708595450325,-500.0,0.00035616,2]
[314855698,1708595450334,-509.29648016,0.00035616,2]
[314855699,1708595450343,-500.0,0.00035616,2]
[314855700,1708595450353,-506.7229604,0.00035616,2]
[314855701,1708595450364,-500.0,0.00035616,2]
[314855702,1708595450373,-500.0,0.00035616,2]
[314855703,1708595450383,-718.4,0.00035616,2]
[314855704,1708595450392,-601.37,0.00035616,2]
[314855705,1708595450402,-598.21,0.00035616,2]
[314855706,1708595450412,-500.0,0.00035616,2]
[314855707,1708595450422,-500.0,0.00035616,2]
[314855708,1708595450431,-603.67,0.00035616,2]
[314855709,1708595450441,-1034.2,0.00035616,2]
[314855710,1708595450450,-500.0,0.00035616,2]
[314855711,1708595450460,-1222.19,0.00035616,2]
[314855712,1708595450469,-756.52,0.00035616,2]
[314855713,1708595450478,-488.04757882,0.00035616,2]
[314855714,1708595450487,-798.48,0.00035616,2]
[314855715,1708595450496,-500.0,0.00035616,2]
[314855716,1708595450505,-500.0,0.00035616,2]
[314855717,1708595450514,-500.0,0.00035616,2]
[314855718,1708595450523,-500.0,0.00035616,2]
[314855719,1708595450532,-500.0,0.00035616,2]
[314855720,1708595450542,-500.0,0.00035616,2]
[314855721,1708595450551,-324.58122345,0.00035616,2]
[314855722,1708595450562,-500.57764864,0.00035616,2]
[314855723,1708595450571,-500.0,0.00035616,2]
[314855724,1708595450581,-500.0,0.00035616,2]
[314855725,1708595450591,-232.08924781,0.00035616,2]
[314855726,1708595450601,-500.0,0.00035616,2]
[314855727,1708595450613,-500.0,0.00035616,2]
[314855728,1708595450622,-500.0,0.00035616,2]
[314855729,1708595450631,-500.0,0.00035616,2]
[314855730,1708595450640,-500.0,0.00035616,2]
[314855731,1708595450649,-500.0,0.00035616,2]
[314855732,1708595450659,-500.0,0.00035616,2]
[314855733,1708595450668,-500.0,0.00035616,2]
[314855734,1708595450677,-956.79,0.00035616,2]
[314855735,1708595450686,-514.2488062,0.00035616,2]
[314855736,1708595450695,-500.0,0.00035616,2]